[Event "Saint Louis Super Swiss 2023"]
[Site "Saint Louis"]
[Date "2023.03.12"]
[Round "2.1"]
[White "Daggupati, Balaji"]
[Black "Nyzhnyk, Illya"]
[Result "1/2-1/2"]
[ECO "C42"]
[WhiteElo "2513"]
[BlackElo "2654"]
[Annotator "TA"]
[PlyCount "36"]
[EventDate "2023.03.12"]
[EventType "swiss"]
[EventCountry "USA"]
[SourceTitle "playchess.com"]
[Source "ChessBase"]
[SourceQuality "1"]
[TimeControl "5400+30"]

{[%evp 21,36,13,10,14,0,6,14,5,9,19,21,2,46,0,4,-6,0]} 1. e4 {[%emt 0:00:03]} e5 {[%emt 0:00:22]} 2. Nf3 {[%emt 0:00:07]} Nf6 {[%emt 0:00:04]} 3. Nxe5 {[%emt 0:00:08]} d6 {[%emt 0:00:03]} 4. Nf3 {[%emt 0:00:08]} Nxe4 {[%emt 0:00:05]} 5. d4 {[%emt 0:00:52]} d5 {[%emt 0:00:05]} 6. Bd3 {[%emt 0:00:09]} Bd6 {[%emt 0:00:05]} 7. O-O {[%emt 0:00:19]} O-O {[%emt 0:00:05]} 8. c4 {[%emt 0:00:21]} c6 {[%emt 0:00:06]} 9. Nc3 {[%emt 0:00:04]} Nxc3 {[%emt 0:00:20]} 10. bxc3 {[%emt 0:00:07]} dxc4 {[%emt 0:00:04]} 11. Bxc4 {[%emt 0:00:08]} Bf5 {[%emt 0:00:31]} 12. Bg5 $1 {[%emt 0:02:00] 12.Bg5 scores better than 12.Re1. C42: Petroff Defence: 3 Nxe5 and unusual White 3rd moves.} Qa5 {[%emt 0:00:50]} 13. d5 {[%emt 0:00:38] [#] And now dxc6 would win.} Be4 {[%emt 0:20:21][%cal Rc6d5]} ({Resist} 13... Qxc3 14. Rc1 Qa3 15. Re1 $16) 14. dxc6 {[%emt 0:01:29]} Bxf3 {[%emt 0:00:19]} 15. Qxf3 {[%emt 0:00:06]} Nxc6 {[%emt 0:00:53] Threatens to win with ...Ne5.} 16. Bd5 {[%emt 0:02:26]} Qc7 {[%emt 0:03:10] [#]} 17. Rab1 $146 {[%emt 0:08:05]} (17. g3 $14 {is more appropriate.}) ({Predecessor:} 17. h4 Rac8 18. h5 Ne5 19. Qe4 h6 20. Be3 Nc4 21. Bxh6 gxh6 22. Qg6+ Kh8 23. Qxh6+ {1-0 Nepomniachtchi,I (2792)-Martinez Alcantara,J (2591) Chess.com Rapid Wk25 Swiss 2022 (5)}) 17... Rae8 {[%emt 0:05:22]} 18. Bxc6 {[%emt 0:12:22]} bxc6 {[%emt 0:00:16] Not much happened in this game.   Weighted Error Value: White=0.10 (very precise) /Black=0.08 (flawless)} (18... Bxh2+ $2 19. Kh1 bxc6 20. g3 $16) 1/2-1/2

[Event "Saint Louis Super Swiss 2023"]
[Site "Saint Louis"]
[Date "2023.03.12"]
[Round "2.2"]
[White "Hakobyan, Aram"]
[Black "Moradiabadi, Elshan"]
[Result "1/2-1/2"]
[ECO "C54"]
[WhiteElo "2620"]
[BlackElo "2507"]
[Annotator "TA"]
[PlyCount "69"]
[EventDate "2023.03.12"]
[EventType "swiss"]
[EventCountry "USA"]
[SourceTitle "playchess.com"]
[Source "ChessBase"]
[SourceQuality "1"]
[TimeControl "5400+30"]

{[%evp 13,69,12,19,10,21,25,25,2,24,19,26,21,22,23,33,23,34,33,27,17,26,0,36,18,26,23,16,20,22,13,16,16,27,20,20,0,0,0,0,0,0,-20,0,0,60,50,54,45,56,34,45,50,52,37,55,0,0,0]} 1. e4 {[%emt 0:00:03]} e5 {[%emt 0:03:45]} 2. Nf3 {[%emt 0:00:12]} Nc6 {[%emt 0:00:01]} 3. Bc4 {[%emt 0:00:17]} Nf6 {[%emt 0:00:04]} 4. d3 {[%emt 0:00:11]} Bc5 {[%emt 0:00:04]} 5. O-O {[%emt 0:00:21]} d6 {[%emt 0:00:50]} 6. c3 {[%emt 0:00:12]} a6 {[%emt 0:00:38]} 7. a4 {[%emt 0:00:38]} h6 {[%emt 0:00:08]} 8. Nbd2 {[%emt 0:01:10][%cal Bb1d2,Bd2f1,Bf1g3][%mdl 32] C54: Giuoco Piano: 4 c3 Nf6, main lines with 5 d4 and 5 d3.} Ba7 {[%emt 0:00:20]} 9. Re1 {[%emt 0:00:47]} O-O {[%emt 0:00:28]} 10. h3 {[%emt 0:01:42] White has an edge.} Be6 {[%emt 0:00:33]} (10... Nh5 {feels hotter.} 11. Nf1 Qf6 12. Be3 Be6) 11. Bxe6 {[%emt 0:02:20]} fxe6 {[%emt 0:00:01]} 12. Nf1 {[%emt 0:00:19]} Ne7 {[%emt 0:00:41]} 13. Ng3 {[%emt 0:01:43]} Ng6 {[%emt 0:00:17]} 14. d4 {[%emt 0:00:29]} Qe7 {[%emt 0:00:12]} 15. Be3 {[%emt 0:01:00]} Nd7 {[%emt 0:00:34]} 16. a5 {[%emt 0:02:14] [#]} Rf7 $146 {[%emt 0:06:35]} ({Predecessor:} 16... Kh7 17. Nd2 Rf7 18. Nc4 Raf8 19. Qb3 Rb8 20. Rad1 Qh4 21. Nd2 Qe7 22. Qc4 Rc8 {½-½ Caruana,F (2822)-Nakamura,H (2769) Norway Masters blitz 6th 2018 (2)}) 17. Nh2 {[%emt 0:03:09]} (17. Qb3 $5 {[%cal Rb3b7]}) 17... Kh7 {[%emt 0:13:14]} 18. b4 {[%emt 0:05:13]} c6 {[%emt 0:13:37]} 19. Ra2 {[%emt 0:02:18]} Raf8 {[%emt 0:02:39]} 20. Ng4 {[%emt 0:09:24]} exd4 {[%emt 0:03:09]} 21. cxd4 {[%emt 0:00:17]} Nf6 {[%emt 0:00:09]} 22. Nxf6+ {[%emt 0:03:42]} Rxf6 {[%emt 0:00:05]} (22... Qxf6 {simplifies} 23. e5 Qe7 24. Qb1 dxe5 25. dxe5 Bxe3 26. Rxe3 Qg5) 23. e5 {[%emt 0:12:41]} R6f7 {[%emt 0:00:37]} 24. exd6 {[%emt 0:00:13]} (24. Qb1 $5 {[%cal Re5d6]}) 24... Qxd6 {[%emt 0:00:03]} 25. Qb1 {[%emt 0:00:30]} Qd5 {[%emt 0:02:47]} 26. Rae2 {[%emt 0:07:52]} Bb8 {[%emt 0:04:57]} 27. Bd2 {[%emt 0:06:19]} Bxg3 {[%emt 0:09:25]} (27... Qxd4 $5 {[%cal Rb8g3]} 28. Be3 Qf6 $15) 28. fxg3 {[%emt 0:00:09][%cal Bf2g3,Bg3g4][%mdl 32]} Qxd4+ {[%emt 0:00:39]} ({Better is} 28... Rf6 $11) 29. Be3 $14 {[%emt 0:00:36]} Qd5 {[%emt 0:02:21]} 30. g4 $1 {[%emt 0:03:57][%mdl 1024] [#] Repels Qf5. aiming for h4. White has compensation.} Qc4 {[%emt 0:09:37]} 31. Rd2 $1 {[%emt 0:05:11] Repels Rd8. Threatens to win with Rc1.} e5 $1 {[%emt 0:08:31]} 32. Bc5 {[%emt 0:12:00]} Re8 {[%emt 0:00:06]} 33. Rc1 {[%emt 0:05:23]} Qb5 {[%emt 0:01:30]} 34. Bf2 {[%emt 0:00:04]} (34. Qc2 $14) 34... Rf4 $1 $11 {[%emt 0:02:18]} 35. Bc5 {[%emt 0:08:00] Weighted Error Value: White=0.08 (flawless) /Black=0.08 (flawless)} 1/2-1/2

[Event "Saint Louis Super Swiss 2023"]
[Site "Saint Louis"]
[Date "2023.03.12"]
[Round "2.3"]
[White "Raja Harshit"]
[Black "Bruzon Batista, Lazaro"]
[Result "1/2-1/2"]
[ECO "C67"]
[WhiteElo "2498"]
[BlackElo "2610"]
[Annotator "TA"]
[PlyCount "34"]
[EventDate "2023.03.12"]
[EventType "swiss"]
[EventCountry "USA"]
[SourceTitle "playchess.com"]
[Source "ChessBase"]
[SourceQuality "1"]
[TimeControl "5400+30"]

{[%evp 16,21,6,12,21,14,8,3]} 1. e4 {[%emt 0:02:12]} e5 {[%emt 0:00:10]} 2. Nf3 {[%emt 0:00:20]} Nc6 {[%emt 0:00:06]} 3. Bb5 {[%emt 0:00:08]} Nf6 {[%emt 0:00:35]} 4. O-O {[%emt 0:00:37][%cal Bh1f1,Bf1e1,Be1e5][%mdl 32]} Nxe4 {[%emt 0:00:12]} 5. Re1 {[%emt 0:00:16]} Nd6 {[%emt 0:00:07]} 6. Nxe5 {[%emt 0:00:22]} Be7 {[%emt 0:00:17]} 7. Bf1 {[%emt 0:00:18]} Nxe5 {[%emt 0:01:26]} 8. Rxe5 {[%emt 0:00:28]} O-O {[%emt 0:00:07]} 9. d4 {[%emt 0:02:54] The position is equal.} Ne8 {[%emt 0:01:41] C67: Ruy Lopez: Berlin Defence: 4 0-0 Nxe4.} 10. Nc3 {[%emt 0:08:33] Black is weak on the light squares} Bf6 {[%emt 0:02:23]} 11. Re1 {[%emt 0:00:08] [#] An uneventful encounter.   Weighted Error Value: White=0.04 (flawless) /Black=0.00 (flawless)} {Predecessor:} d5 $146 12. b3 c6 13. Ba3 Nd6 14. Qf3 Be6 15. Qf4 Be7 16. Bd3 Ne8 17. Bxe7 Qxe7 {½-½ Vachier Lagrave,M (2760)-Carlsen,M (2864) Zagreb SuperUnited Blitz 2022 (14)} 1/2-1/2

[Event "Saint Louis Super Swiss 2023"]
[Site "Saint Louis"]
[Date "2023.03.12"]
[Round "2.4"]
[White "Quesada Perez, Yasser"]
[Black "Corrales Jimenez, Fidel"]
[Result "1/2-1/2"]
[ECO "B50"]
[WhiteElo "2604"]
[BlackElo "2489"]
[Annotator "TA"]
[PlyCount "134"]
[EventDate "2023.03.12"]
[EventType "swiss"]
[EventCountry "USA"]
[SourceTitle "playchess.com"]
[Source "ChessBase"]
[SourceQuality "1"]
[TimeControl "5400+30"]

{[%evp 9,134,33,34,25,34,15,16,8,19,8,9,0,0,0,19,0,30,25,28,11,20,0,13,3,26,10,18,0,0,0,0,0,0,-15,19,-16,-7,-8,-20,-70,0,-41,-37,-31,-27,-25,0,0,0,0,-4,-7,0,0,0,0,0,-37,4,0,14,12,17,23,21,29,31,28,31,32,79,8,22,0,0,22,14,24,14,31,25,14,29,29,112,35,35,0,0,0,0,0,121,135,192,32,44,42,42,45,97,87,253,254,220,243,374,372,355,344,347,343,340,268,268,268,371,371,363,279,254,0,335,0,240,0,256]} 1. e4 {[%emt 0:00:03]} c5 {[%emt 0:03:54]} 2. Nf3 {[%emt 0:00:15]} d6 {[%emt 0:00:05]} 3. c3 {[%emt 0:00:16]} Nf6 {[%emt 0:00:04]} 4. h3 {[%emt 0:00:05]} Bd7 {[%emt 0:02:22]} 5. Bd3 {[%emt 0:00:50]} Nc6 {[%emt 0:04:40][%cal Bb8c6,Bc6b4,Bb4c2][%mdl 32]} 6. Bc2 {[%emt 0:01:01] B50: Sicilian: 2...d6, Miscellaneous.} e5 {[%emt 0:00:12]} 7. d4 {[%emt 0:04:11]} (7. O-O $5 {[%cal Rd2d4]}) 7... cxd4 {[%emt 0:11:34]} 8. cxd4 {[%emt 0:00:32] [#]} Qb6 $146 {[%emt 0:00:09][%cal Re5d4]} ({Predecessor:} 8... Be7 9. Nc3 O-O 10. O-O Rc8 11. Ba4 Re8 12. Re1 a6 13. Bxc6 Bxc6 14. d5 Bd7 {½-½ Pezelj,N (2345)-Indjic,A (2323) SRB-Cup Valjevo 2011 (7.3)}) 9. d5 {[%emt 0:08:53]} Nb4 {[%emt 0:04:20]} 10. Nc3 {[%emt 0:04:16]} Nxc2+ {[%emt 0:02:23]} 11. Qxc2 {[%emt 0:00:04]} Be7 {[%emt 0:06:13]} 12. Be3 {[%emt 0:07:59]} Qa5 {[%emt 0:07:07]} 13. O-O {[%emt 0:05:01]} O-O {[%emt 0:00:05]} 14. Qd3 {[%emt 0:03:30]} Rfc8 {[%emt 0:00:18]} 15. Rfc1 {[%emt 0:04:28]} b5 {[%emt 0:04:32]} 16. Nd2 {[%emt 0:04:06][%cal Oa2a4]} b4 {[%emt 0:00:49]} 17. Nb3 {[%emt 0:00:04]} Qd8 {[%emt 0:03:55]} 18. Ne2 {[%emt 0:00:51]} a5 {[%emt 0:05:49]} 19. Nd2 {[%emt 0:14:50]} a4 {[%emt 0:00:25]} 20. Ng3 {[%emt 0:04:56]} Qa5 {[%emt 0:01:28]} 21. Nf3 {[%emt 0:05:56]} Qb5 {[%emt 0:02:32]} 22. Qd2 {[%emt 0:02:18]} b3 {[%emt 0:01:36]} 23. axb3 {[%emt 0:07:00]} Qxb3 {[%emt 0:00:03]} 24. Nh4 {[%emt 0:02:16]} (24. Rxc8+ $11 Rxc8 25. Ra3) 24... Rcb8 {[%emt 0:03:53]} (24... Nxd5 25. Nhf5 $16) (24... Rab8 $15 25. Rxc8+ Rxc8) 25. Rc2 {[%emt 0:04:35]} (25. Nhf5 $5 {[%cal Rf5e7]} Bf8 26. Nxg7 Bxg7 27. Bh6 Bxh6 28. Qxh6 $11) 25... Qb4 {[%emt 0:10:13]} (25... Nxd5 {looks sharper.} 26. Nhf5 Nxe3 27. Nxe7+ Kf8) 26. Nhf5 {[%emt 0:01:32][%cal Bh4f5,Bf5e3,Be3c4,Bc4a5,Ba5c6][%mdl 32]} Bf8 {[%emt 0:01:19]} 27. f3 {[%emt 0:00:45]} h6 {[%emt 0:06:12]} 28. Qxb4 {[%emt 0:04:34]} Rxb4 {[%emt 0:00:02]} 29. Bd2 {[%emt 0:00:38]} Rb3 {[%emt 0:00:26]} 30. Ne3 {[%emt 0:01:07]} Rab8 {[%emt 0:00:25]} 31. Nc4 {[%emt 0:01:22]} g6 {[%emt 0:01:12]} 32. Ra3 {[%emt 0:01:54]} R3b7 {[%emt 0:00:47]} 33. Nf1 {[%emt 0:02:23]} Kg7 {[%emt 0:00:19]} 34. Nfe3 {[%emt 0:00:51]} Ne8 {[%emt 0:00:51]} 35. Ra2 {[%emt 0:00:58]} f5 {[%emt 0:02:17]} 36. Na5 {[%emt 0:00:10] A dynamic duo of knights.} Rb5 {[%emt 0:00:26]} 37. Nc6 {[%emt 0:00:21]} (37. Rxa4 Rxb2 38. Rac4 (38. Nc6 Rxc2 39. Nxc2 fxe4 $15) 38... Rxc2 39. Nxc2 fxe4 40. fxe4 Nf6 $15) 37... Ra8 {[%emt 0:00:37]} 38. Rc4 {[%emt 0:01:06]} Nf6 {[%emt 0:00:58]} 39. Bc3 {[%emt 0:00:10]} a3 {[%emt 0:02:37]} 40. b4 {[%emt 0:01:54]} (40. bxa3 $6 Rb3 $11) (40. Rxa3 $16 Rxa3 41. bxa3) 40... Kg8 {[%emt 0:03:07]} 41. Nc2 {[%emt 0:00:25][%cal Be3c2,Bc2a3,Ba3c4][%mdl 32]} fxe4 {[%emt 0:07:49]} 42. fxe4 {[%emt 0:00:01]} Nxe4 {[%emt 0:00:06]} 43. Rxe4 {[%emt 0:01:04]} Rxd5 {[%emt 0:00:02][%cal Bb5d5,Bd5d1,Bd1a1][%mdl 32]} 44. Na5 {[%emt 0:00:25]} Bf5 {[%emt 0:00:09]} 45. Re3 {[%emt 0:01:52]} h5 {[%emt 0:00:02]} 46. Nxa3 {[%emt 0:00:22] b5 would be deadly.} Rc8 {[%emt 0:00:11]} (46... Bh6 $1 $11 47. Ree2 Rd1+ 48. Kh2 Be6) 47. Be1 {[%emt 0:01:01]} ({White should try} 47. N3c4 $16) 47... Rd1 {[%emt 0:00:13]} 48. Rd2 {[%emt 0:00:41]} Ra1 {[%emt 0:00:08] Hoping for ...Bh6.} 49. N3c4 {[%emt 0:00:29]} Bh6 {[%emt 0:00:06]} 50. Kf2 {[%emt 0:00:36][%cal Od2d6] Strongly threatening Rxd6!} Rf8 {[%emt 0:02:36] [#]} (50... Bxe3+ $11 {keeps the balance.} 51. Nxe3 Rcc1) 51. Ke2 $1 $16 {[%emt 0:00:01][%cal Od2d6]} Rd8 {[%emt 0:02:23]} (51... Bxe3 $16 52. Nxe3 Bd7) 52. Ra3 $2 {[%emt 0:00:37]} ({White should play} 52. Bh4 $18 Bxe3 53. Kxe3 (53. Bxd8 Bxd2 54. Kxd2 Ra2+ 55. Ke3 d5 $14) (53. Nxe3 Rd7 $16)) 52... Rxa3 $14 {[%emt 0:00:13]} 53. Nxa3 {[%emt 0:00:01] And now Rb2 would win.} Bxd2 {[%emt 0:00:09]} 54. Bxd2 {[%emt 0:00:03]} d5 {[%emt 0:00:54]} (54... Be4 $14) 55. b5 $16 {[%emt 0:00:27]} Bd7 $2 {[%emt 0:00:01] [#]} (55... Be4 $16) 56. b6 $1 $18 {[%emt 0:00:55]} Rb8 {[%emt 0:00:59]} 57. b7 {[%emt 0:00:01] Black must now prevent Bb4.} Bc8 {[%emt 0:00:05]} (57... Kf7 $142 58. Bb4 Ke6) 58. bxc8=Q+ {[%emt 0:00:43]} ({Don't do} 58. bxc8=R+ Rxc8 59. Nb5 Rc5 $18) 58... Rxc8 {[%emt 0:00:02]} 59. Nb3 {[%emt 0:01:37]} Kf7 {[%emt 0:00:07]} 60. Nc1 {[%emt 0:00:36]} Ke6 {[%emt 0:00:24]} 61. Nb5 {[%emt 0:00:15]} Rb8 {[%emt 0:02:26]} 62. Nc3 {[%emt 0:00:12]} d4 {[%emt 0:00:12]} 63. Ne4 {[%emt 0:00:20]} Kd5 {[%emt 0:00:01]} 64. Nf6+ {[%emt 0:00:42]} Ke6 {[%emt 0:00:02]} 65. Ne4 {[%emt 0:00:47]} Kd5 $1 {[%emt 0:00:01]} 66. Nf6+ {[%emt 0:00:37]} Ke6 $1 {[%emt 0:00:01]} 67. Ne4 {[%emt 0:00:05]} Kd5 $1 {[%emt 0:00:13][%mdl 32768] Weighted Error Value: White=0.15 (very precise) /Black=0.21 (precise) . An unexpected result.} 1/2-1/2

[Event "Saint Louis Super Swiss 2023"]
[Site "Saint Louis"]
[Date "2023.03.12"]
[Round "2.5"]
[White "Escalante Ramirez, Brian Sebasti"]
[Black "Akobian, Varuzhan"]
[Result "1/2-1/2"]
[ECO "B13"]
[WhiteElo "2474"]
[BlackElo "2591"]
[Annotator "TA"]
[PlyCount "57"]
[EventDate "2023.03.12"]
[EventType "swiss"]
[EventCountry "USA"]
[SourceTitle "playchess.com"]
[Source "ChessBase"]
[SourceQuality "1"]
[TimeControl "5400+30"]

{[%evp 9,57,20,29,10,10,18,23,18,16,8,18,18,22,18,34,33,133,138,121,112,133,111,125,116,117,0,131,0,119,53,51,63,108,99,120,0,0,0,0,0,0,0,0,0,0,0,0,0,0,0]} 1. e4 {[%emt 0:00:02]} c6 {[%emt 0:00:25]} 2. d4 {[%emt 0:00:19]} d5 {[%emt 0:00:19]} 3. exd5 {[%emt 0:00:02]} cxd5 {[%emt 0:00:11]} 4. Bd3 {[%emt 0:00:03]} Nc6 {[%emt 0:01:02]} 5. c3 {[%emt 0:00:04]} Qc7 {[%emt 0:02:51]} 6. Na3 {[%emt 0:00:03] B13: Caro-Kann: Exchange Variation and Panov-Botvinnik Attack.} a6 {[%emt 0:00:18]} 7. Nc2 {[%emt 0:00:03]} Nf6 {[%emt 0:01:56]} 8. h3 {[%emt 0:00:02] White has an edge.} e6 {[%emt 0:12:21]} 9. Nf3 {[%emt 0:00:03]} Bd6 {[%emt 0:00:09]} 10. O-O {[%emt 0:00:04]} O-O {[%emt 0:00:47]} 11. Re1 {[%emt 0:00:02] [#]} Re8 $146 {[%emt 0:00:55]} ({Predecessor:} 11... Bf4 12. Bxf4 Qxf4 13. Qe2 Bd7 14. Ne5 Rac8 15. Rad1 Ne7 16. Ne3 Ng6 17. g3 Qh6 {1-0 Van den Doel,E (2582)-Lai,H (2486) NED-ch Groningen 2022 (1.1)}) 12. Bg5 {[%emt 0:20:44]} h6 {[%emt 0:02:11]} (12... Ne7 $14) 13. Bxf6 $16 {[%emt 0:03:45]} gxf6 {[%emt 0:00:02]} 14. Nh4 {[%emt 0:00:08]} Bd7 {[%emt 0:04:39]} 15. Qg4+ {[%emt 0:02:56]} Kh8 {[%emt 0:00:31]} 16. Qh5 {[%emt 0:02:53]} Kg7 {[%emt 0:00:22]} 17. Qg4+ {[%emt 0:18:06]} Kh8 {[%emt 0:01:12]} 18. Qh5 {[%emt 0:01:51]} Kg7 {[%emt 0:00:56] [#]} 19. Bg6 {[%emt 0:00:34]} Re7 $14 {[%emt 0:02:32] [#]} (19... Bh2+ $2 20. Kh1 Re7 21. g3 $18) 20. Ne3 $1 {[%emt 0:00:02]} Bf4 {[%emt 0:12:34]} (20... fxg6 21. Qxg6+) 21. Bd3 {[%emt 0:04:22]} ({Stronger than} 21. Bxf7 Rxf7 22. Ng4 (22. g3 $2 Bg5 $19) 22... Rh8 23. Qg6+ Kf8 24. Nxf6 Bc8 $19) 21... Rh8 {[%emt 0:09:52] [#]} 22. Ng6 {[%emt 0:12:31] Prevents Bg5. White has more active pieces.} fxg6 $11 {[%emt 0:00:23] The position is equal.} 23. Qxg6+ {[%emt 0:00:02]} Kf8 {[%emt 0:00:18] Threatens to win with ...Rf7.} 24. Qxf6+ {[%emt 0:00:06]} Kg8 {[%emt 0:00:08] ...Rg7 would be deadly.} 25. Nxd5 {[%emt 0:00:04]} exd5 {[%emt 0:00:19]} 26. Qg6+ {[%emt 0:00:29]} Kf8 {[%emt 0:00:32]} (26... Rg7 $2 {is a self mate.} 27. Re8+ Bxe8 28. Qxe8#) 27. Qf6+ {[%emt 0:00:03]} Kg8 {[%emt 0:00:10]} 28. Qg6+ {[%emt 0:00:17]} Kf8 {[%emt 0:00:22]} (28... Rg7 $2 {gets mated.} 29. Re8+ Bxe8 30. Qxe8#) 29. Qf6+ {[%emt 0:00:07] A fantastic game!   Weighted Error Value: White=0.26 (precise) /Black=0.10 (very precise)} 1/2-1/2

[Event "Saint Louis Super Swiss 2023"]
[Site "Saint Louis"]
[Date "2023.03.12"]
[Round "2.6"]
[White "Yoo, Christopher Woojin"]
[Black "Dudin, Gleb"]
[Result "1/2-1/2"]
[ECO "C84"]
[WhiteElo "2591"]
[BlackElo "2469"]
[Annotator "TA"]
[PlyCount "91"]
[EventDate "2023.03.12"]
[EventType "swiss"]
[EventCountry "USA"]
[SourceTitle "playchess.com"]
[Source "ChessBase"]
[SourceQuality "1"]
[TimeControl "5400+30"]

{[%evp 18,91,16,17,20,14,14,7,20,-42,-23,-112,-119,-122,-85,-100,-57,-53,-56,-75,-77,-68,-61,-120,-55,-68,0,0,20,-150,-143,-181,-115,-302,-311,-310,-287,-356,-352,-628,-615,-718,-733,-743,-731,-862,-822,-991,-983,-929,-896,-633,-289,-619,-177,-213,-104,-87,-36,-74,-5,-5,0,0,0,0,0,-11,0,0,0,0,0,0,0,0]} 1. e4 {[%emt 0:00:09]} e5 {[%emt 0:02:36]} 2. Nf3 {[%emt 0:00:10]} Nc6 {[%emt 0:00:07]} 3. Bb5 {[%emt 0:00:08][%cal Bf1b5,Bb5a4,Ba4b3][%mdl 32]} a6 {[%emt 0:00:39]} 4. Ba4 {[%emt 0:00:08]} Nf6 {[%emt 0:00:08]} 5. O-O {[%emt 0:00:24]} Be7 {[%emt 0:00:11]} 6. d3 {[%emt 0:03:14]} b5 {[%emt 0:03:07]} 7. Bb3 {[%emt 0:00:07]} d6 {[%emt 0:00:43]} 8. a4 {[%emt 0:01:07]} b4 {[%emt 0:01:27]} 9. a5 {[%emt 0:00:53]} O-O {[%emt 0:00:15]} 10. Nbd2 {[%emt 0:00:38]} Be6 {[%emt 0:07:24] C84: Closed Ruy Lopez: Unusual White 6th moves.} 11. Bxe6 {[%emt 0:04:03]} fxe6 {[%emt 0:00:09]} 12. Nc4 {[%emt 0:05:06] [#]} h6 $146 {[%emt 0:05:56]} ({Predecessor:} 12... Rb8 13. b3 Rb5 14. Bd2 Nd7 15. Qe2 Bf6 16. Qe1 Be7 17. h3 Rxf3 18. gxf3 Nd4 {1-0 Al Tarbosh,W (2256)-Estrada Nieto,J (2248) Titled Tuesday intern op 28th Feb Late blitz 2023 (1)}) 13. d4 {[%emt 0:03:48]} (13. c3 $11) 13... Nxe4 {[%emt 0:21:54]} 14. d5 {[%emt 0:14:55]} (14. Qe2 $11 Ng5 15. Bxg5 Bxg5 16. dxe5) 14... Na7 $17 {[%emt 0:01:23]} 15. dxe6 {[%emt 0:00:09]} Qc8 $1 {[%emt 0:04:08]} 16. Re1 {[%emt 0:04:09]} Nc5 {[%emt 0:02:53]} 17. Ne3 {[%emt 0:01:22]} c6 {[%emt 0:12:16] Prevents Nd5} 18. Nc4 {[%emt 0:02:21]} Qxe6 {[%emt 0:01:40]} 19. Nb6 {[%emt 0:00:16]} Rad8 {[%emt 0:05:47]} 20. Bd2 {[%emt 0:02:52]} (20. Be3 $1 $15) 20... b3 {[%emt 0:09:19]} ({Black should play} 20... e4 $17 {...Qf5 would be deadly.} 21. Qe2 (21. Bxb4 Qf5 $17) 21... Nb5 22. Bxb4 Qg6 23. Bxc5 exf3 24. Qe6+ Qxe6 25. Rxe6 Kf7) 21. Be3 {[%emt 0:05:15]} e4 {[%emt 0:05:59]} (21... Qf5 $15 22. Bxc5 bxc2) 22. Bxc5 $1 $11 {[%emt 0:02:39]} Qg6 {[%emt 0:03:20] [#]} (22... dxc5 {simplifies} 23. Qe2 Bf6 24. c3 Nb5) 23. Nd5 $2 {[%emt 0:03:49]} cxd5 $40 {[%emt 0:00:53][%mdl 128] Black wants a kill.} 24. Qxd5+ {[%emt 0:00:11] [#]} Kh8 {[%emt 0:00:10]} (24... Rf7 $1 $19 25. Bxa7 exf3) 25. Bxa7 $2 {[%emt 0:03:57]} (25. Qxe4 Qxe4 26. Rxe4 dxc5 $19) (25. Nh4 $17 Bxh4 26. Bxa7 bxc2 27. Rac1) 25... exf3 $19 {[%emt 0:00:15][%csl Gf3][%cal Rg6g2]} 26. g3 {[%emt 0:00:02]} Rd7 {[%emt 0:00:24]} 27. Bd4 {[%emt 0:00:05]} bxc2 {[%emt 0:01:52]} (27... Qxc2 28. Qe6 Rfd8 29. Qxh6+ Qh7 30. Qe6 $18) 28. Re6 $2 {[%emt 0:00:24] [#]} (28. h3 Bh4 29. Kh1) 28... Rc7 $1 {[%emt 0:03:02]} 29. Rc1 {[%emt 0:01:58]} (29. Bc3 Qg5) 29... Qg5 {[%emt 0:00:26]} 30. Qxg5 {[%emt 0:00:08]} Bxg5 {[%emt 0:00:07]} ({Worse is} 30... hxg5 31. Bb6 Rfc8 32. Bxc7 Rxc7 33. Kf1 $15) 31. Be3 {[%emt 0:00:02]} Rb8 {[%emt 0:04:01]} 32. Bxg5 {[%emt 0:00:26]} hxg5 {[%emt 0:00:05][%mdl 4096] Endgame KRR-KRR} 33. Kf1 {[%emt 0:00:05]} Rxb2 {[%emt 0:01:33]} 34. Ke1 {[%emt 0:00:04]} Rc5 {[%emt 0:01:12]} (34... Rb5 $142 35. Re3 g4) 35. Rxd6 $2 {[%emt 0:01:05]} (35. Kd2 Rd5+ 36. Kc3) 35... Rxa5 $2 {[%emt 0:01:04]} (35... Re5+ 36. Kd2 Re2+ 37. Kc3 Rb8 38. Rxa6 Rxf2) 36. Kd2 {[%emt 0:00:51][%cal Oh2h3]} Re5 {[%emt 0:00:26]} (36... g4 $19 37. Rd4 Re5) 37. Kc3 $17 {[%emt 0:00:24]} Rb8 {[%emt 0:01:36]} ({Better is} 37... Ra2 $17 {Hoping for ...Rc5+.} 38. h3 Rc5+ 39. Kd2 (39. Kb3 Raa5 $19) 39... Rc8) 38. Rxc2 $15 {[%emt 0:00:49]} Rc8+ {[%emt 0:00:27]} (38... a5 $17 {Threatens to win with ...Rc8+.} 39. Ra2 Rc8+ 40. Kd3 Rc1) 39. Kd3 $11 {[%emt 0:00:09] The position is equal.} Rxc2 {[%emt 0:00:07]} 40. Kxc2 {[%emt 0:00:03] KR-KR} ({Much weaker is} 40. Rd8+ Kh7 41. Kxc2 Re2+ 42. Kd3 g4 $19) 40... Re2+ {[%emt 0:00:54]} 41. Kd3 {[%emt 0:00:07]} Rxf2 {[%emt 0:00:31]} 42. Ke3 {[%emt 0:00:26]} Rxh2 {[%emt 0:00:30] ...g4 is the strong threat.} 43. Rxa6 {[%emt 0:02:21]} g4 {[%emt 0:00:12]} 44. Kf4 {[%emt 0:00:02]} Rh6 {[%emt 0:00:50]} 45. Ra8+ {[%emt 0:00:16]} Kh7 {[%emt 0:00:04]} 46. Kxg4 {[%emt 0:00:04] Whites escaped into a draw.   Weighted Error Value: White=0.62/Black=0.45} 1/2-1/2

[Event "Saint Louis Super Swiss 2023"]
[Site "Saint Louis"]
[Date "2023.03.12"]
[Round "2.7"]
[White "Kavutskiy, Konstantin"]
[Black "Theodorou, Nikolas"]
[Result "1/2-1/2"]
[WhiteElo "2405"]
[BlackElo "2584"]
[Annotator "TA"]
[PlyCount "31"]
[EventDate "2023.03.12"]
[EventType "swiss"]
[EventCountry "USA"]
[SourceTitle "playchess.com"]
[Source "ChessBase"]
[SourceQuality "1"]
[TimeControl "5400+30"]

{[%evp 10,16,54,33,41,42,45,47,64]} 1. d4 {[%emt 0:07:11]} Nf6 {[%emt 0:00:07]} 2. c4 {[%emt 0:00:11]} e6 {[%emt 0:00:08]} 3. Nf3 {[%emt 0:00:52]} Bb4+ {[%emt 0:00:07]} 4. Nbd2 {[%emt 0:00:30]} O-O {[%emt 0:00:16]} 5. a3 {[%emt 0:00:19]} Be7 {[%emt 0:00:06]} 6. e4 {[%emt 0:00:33] White is slightly better.} d6 {[%emt 0:00:05][%cal Oe6e5] E11: Bogo-Indian.} 7. Be2 {[%emt 0:00:56]} c5 {[%emt 0:00:08] 7...Nfd7 is becoming the main line.} 8. d5 {[%emt 0:00:35]} exd5 {[%emt 0:00:06] [#]   Weighted Error Value: White=0.00 (flawless) /Black=0.00 (flawless) was the old line (8...Nbd7).} {Predecessor:} 9. cxd5 $146 Bg4 10. Qc2 Re8 11. O-O Nbd7 12. Re1 Bf8 13. b3 g6 14. Bb2 Bg7 15. h3 Bxf3 16. Bxf3 {1-0 Grischuk,A (2777)-Yuffa,D (2566) Wch Blitz Moscow 2019 (3)} 1/2-1/2